{"text_format":"3","workbook":"xlsx","n_sheets":1,"sheets":["Бір айға жеке бюджет"],"not_rendered":{"defined_names":1},"read":"whole","date_system":"1900"}

{"sheet":"Бір айға жеке бюджет","index":0,"n_rows":63,"n_cols":10,"rows_kept":63,"merged":[[1,1,1,9],[2,1,2,3],[3,1,5,1],[3,2,3,3],[3,6,4,8],[3,9,4,9],[4,2,4,3],[5,2,5,3],[5,6,6,8],[5,9,6,9],[6,1,8,1],[6,2,6,3],[7,2,7,3],[7,6,8,8],[7,9,8,9],[8,2,8,3],[21,6,21,9],[22,1,22,4],[30,6,30,9],[32,1,32,4],[37,6,37,9],[39,1,39,4],[43,6,43,9],[45,1,45,4],[49,6,49,9],[53,1,53,4],[56,6,56,9],[57,6,58,8],[57,9,58,9],[59,6,60,8],[59,9,60,9],[61,6,62,8],[61,9,62,9]]}
[]
[null,"Бір айға жеке бюджет"]
[]
[null,"ЖОБАЛАНҒАН АЙЛЫҚ КІРІС","1-кіріс",null,{"v":2500,"d":"Т2,500"},null,"ЖОБАЛАНҒАН ҚАЛДЫҚ (жобаланған кіріс алу шығындар)",null,null,{"$f":"E6-J58","v":{"v":940,"d":"Т940"}}]
[null,null,"Қосымша кіріс",null,{"v":500,"d":"Т500"}]
[null,null,"Айлық жалпы кіріс",null,{"$f":"SUM(E4:E5)","v":{"v":3000,"d":"Т3,000"}},null,"НАҚТЫ ҚАЛДЫҚ (нақты кіріс алу шығындар)",null,null,{"$f":"E9-J60","v":{"v":960,"d":"Т960"}}]
[null,"НАҚТЫ АЙЛЫҚ КІРІС","1-кіріс",null,{"v":2500,"d":"Т2,500"}]
[null,null,"Қосымша кіріс",null,{"v":500,"d":"Т500"},null,"АЙЫРМАШЫЛЫҚ (нақты қалдық алу жобаланған қалдық)",null,null,{"$f":"J6-J4","v":{"v":20,"d":"Т20"}}]
[null,null,"Айлық жалпы кіріс",null,{"$f":"SUM(E7:E8)","v":{"v":3000,"d":"Т3,000"}}]
[]
[null,"ҮЙ","Жобаланған шығындар","Нақты шығындар","Айырмашылық",null,"ӨКІЛДІК ШЫҒЫНДАР","Жобаланған шығындар","Нақты шығындар","Айырмашылық"]
[null,"Ипотека",{"v":1500,"d":"Т1,500"},{"v":1400,"d":"Т1,400"},{"$f":"Кесте1[Жобаланған шығындар]-Кесте1[Нақты шығындар]","v":{"v":100,"d":"Т100"}},null,"DVD-дискілер",{"v":0,"d":"Т0"},{"v":50,"d":"Т50"},{"$f":"Кесте2[Жобаланған шығындар]-Кесте2[Нақты шығындар]","v":{"v":-50,"d":"-Т50"}}]
[null,"Телефон",{"v":60,"d":"Т60"},{"v":100,"d":"Т100"},{"$f":"Кесте1[Жобаланған шығындар]-Кесте1[Нақты шығындар]","v":{"v":-40,"d":"-Т40"}},null,"Ықшам дискілер",null,null,{"$f":"Кесте2[Жобаланған шығындар]-Кесте2[Нақты шығындар]","v":{"v":0,"d":"Т0"}}]
[null,"Электр жүйесі",{"v":50,"d":"Т50"},{"v":60,"d":"Т60"},{"$f":"Кесте1[Жобаланған шығындар]-Кесте1[Нақты шығындар]","v":{"v":-10,"d":"-Т10"}},null,"Кино",null,null,{"$f":"Кесте2[Жобаланған шығындар]-Кесте2[Нақты шығындар]","v":{"v":0,"d":"Т0"}}]
[null,"Газ",{"v":200,"d":"Т200"},{"v":180,"d":"Т180"},{"$f":"Кесте1[Жобаланған шығындар]-Кесте1[Нақты шығындар]","v":{"v":20,"d":"Т20"}},null,"Концерттер",null,null,{"$f":"Кесте2[Жобаланған шығындар]-Кесте2[Нақты шығындар]","v":{"v":0,"d":"Т0"}}]
[null,"Сумен және кәрізбен қамтамасыз ету",null,null,{"$f":"Кесте1[Жобаланған шығындар]-Кесте1[Нақты шығындар]","v":{"v":0,"d":"Т0"}},null,"Стадион",null,null,{"$f":"Кесте2[Жобаланған шығындар]-Кесте2[Нақты шығындар]","v":{"v":0,"d":"Т0"}}]
[null,"Кабельді телевидение",null,null,{"$f":"Кесте1[Жобаланған шығындар]-Кесте1[Нақты шығындар]","v":{"v":0,"d":"Т0"}},null,"Театр",null,null,{"$f":"Кесте2[Жобаланған шығындар]-Кесте2[Нақты шығындар]","v":{"v":0,"d":"Т0"}}]
[null,"Қоқысты шығару",null,null,{"$f":"Кесте1[Жобаланған шығындар]-Кесте1[Нақты шығындар]","v":{"v":0,"d":"Т0"}},null,"Басқа",null,null,{"$f":"Кесте2[Жобаланған шығындар]-Кесте2[Нақты шығындар]","v":{"v":0,"d":"Т0"}}]
[null,"Жөндеу",null,null,{"$f":"Кесте1[Жобаланған шығындар]-Кесте1[Нақты шығындар]","v":{"v":0,"d":"Т0"}},null,"Басқа",null,null,{"$f":"Кесте2[Жобаланған шығындар]-Кесте2[Нақты шығындар]","v":{"v":0,"d":"Т0"}}]
[null,"Қор",null,null,{"$f":"Кесте1[Жобаланған шығындар]-Кесте1[Нақты шығындар]","v":{"v":0,"d":"Т0"}},null,"Басқа",null,null,{"$f":"Кесте2[Жобаланған шығындар]-Кесте2[Нақты шығындар]","v":{"v":0,"d":"Т0"}}]
[null,"Басқа",null,null,{"$f":"Кесте1[Жобаланған шығындар]-Кесте1[Нақты шығындар]","v":{"v":0,"d":"Т0"}},null,"Барлығы",{"$f":"SUBTOTAL(109,Кесте2[Жобаланған шығындар])","v":{"v":0,"d":"Т0"}},{"$f":"SUBTOTAL(109,Кесте2[Нақты шығындар])","v":{"v":50,"d":"Т50"}},{"$f":"SUBTOTAL(109,Кесте2[Айырмашылық])","v":{"v":-50,"d":"-Т50"}}]
[null,"Барлығы",{"$f":"SUBTOTAL(109,Кесте1[Жобаланған шығындар])","v":{"v":1810,"d":"Т1,810"}},{"$f":"SUBTOTAL(109,Кесте1[Нақты шығындар])","v":{"v":1740,"d":"Т1,740"}},{"$f":"SUBTOTAL(109,Кесте1[Айырмашылық])","v":{"v":70,"d":"Т70"}}]
[{"$nulls":6},"НЕСИЕЛЕР","Жобаланған шығындар","Нақты шығындар","Айырмашылық"]
[null,"КӨЛІК","Жобаланған шығындар","Нақты шығындар","Айырмашылық",null,"Жеке",null,null,{"$f":"Кесте8[Жобаланған шығындар]-Кесте8[Нақты шығындар]","v":{"v":0,"d":"Т0"}}]
[null,"Автомобиль",{"v":250,"d":"Т250"},{"v":250,"d":"Т250"},{"$f":"Кесте3[Жобаланған шығындар]-Кесте3[Нақты шығындар]","v":{"v":0,"d":"Т0"}},null,"Оқу",null,null,{"$f":"Кесте8[Жобаланған шығындар]-Кесте8[Нақты шығындар]","v":{"v":0,"d":"Т0"}}]
[null,"Такси және автобус",null,null,{"$f":"Кесте3[Жобаланған шығындар]-Кесте3[Нақты шығындар]","v":{"v":0,"d":"Т0"}},null,"Несиелік кәртішке",null,null,{"$f":"Кесте8[Жобаланған шығындар]-Кесте8[Нақты шығындар]","v":{"v":0,"d":"Т0"}}]
[null,"Сақтандыру",null,null,{"$f":"Кесте3[Жобаланған шығындар]-Кесте3[Нақты шығындар]","v":{"v":0,"d":"Т0"}},null,"Несиелік кәртішке",null,null,{"$f":"Кесте8[Жобаланған шығындар]-Кесте8[Нақты шығындар]","v":{"v":0,"d":"Т0"}}]
[null,"Лицензиялар",null,null,{"$f":"Кесте3[Жобаланған шығындар]-Кесте3[Нақты шығындар]","v":{"v":0,"d":"Т0"}},null,"Несиелік кәртішке",null,null,{"$f":"Кесте8[Жобаланған шығындар]-Кесте8[Нақты шығындар]","v":{"v":0,"d":"Т0"}}]
[null,"Жанармай",null,null,{"$f":"Кесте3[Жобаланған шығындар]-Кесте3[Нақты шығындар]","v":{"v":0,"d":"Т0"}},null,"Басқа",null,null,{"$f":"Кесте8[Жобаланған шығындар]-Кесте8[Нақты шығындар]","v":{"v":0,"d":"Т0"}}]
[null,"Күтім көрсету",null,null,{"$f":"Кесте3[Жобаланған шығындар]-Кесте3[Нақты шығындар]","v":{"v":0,"d":"Т0"}},null,"Барлығы",{"$f":"SUBTOTAL(109,Кесте8[Жобаланған шығындар])","v":{"v":0,"d":"Т0"}},{"$f":"SUBTOTAL(109,Кесте8[Нақты шығындар])","v":{"v":0,"d":"Т0"}},{"$f":"SUBTOTAL(109,Кесте8[Айырмашылық])","v":{"v":0,"d":"Т0"}}]
[null,"Басқа",null,null,{"$f":"Кесте3[Жобаланған шығындар]-Кесте3[Нақты шығындар]","v":{"v":0,"d":"Т0"}}]
[null,"Барлығы",{"$f":"SUBTOTAL(109,Кесте3[Жобаланған шығындар])","v":{"v":250,"d":"Т250"}},{"$f":"SUBTOTAL(109,Кесте3[Нақты шығындар])","v":{"v":250,"d":"Т250"}},{"$f":"SUBTOTAL(109,Кесте3[Айырмашылық])","v":{"v":0,"d":"Т0"}},null,"САЛЫҚТАР","Жобаланған шығындар","Нақты шығындар","Айырмашылық"]
[{"$nulls":6},"Федеральді салық",null,null,{"$f":"Кесте9[Жобаланған шығындар]-Кесте9[Нақты шығындар]","v":{"v":0,"d":"Т0"}}]
[null,"САҚТАНДЫРУ","Жобаланған шығындар","Нақты шығындар","Айырмашылық",null,"Мемлекет салығы",null,null,{"$f":"Кесте9[Жобаланған шығындар]-Кесте9[Нақты шығындар]","v":{"v":0,"d":"Т0"}}]
[null,"Үй",null,null,{"$f":"Кесте4[Жобаланған шығындар]-Кесте4[Нақты шығындар]","v":{"v":0,"d":"Т0"}},null,"Жергілікті салық",null,null,{"$f":"Кесте9[Жобаланған шығындар]-Кесте9[Нақты шығындар]","v":{"v":0,"d":"Т0"}}]
[null,"Денсаулық",null,null,{"$f":"Кесте4[Жобаланған шығындар]-Кесте4[Нақты шығындар]","v":{"v":0,"d":"Т0"}},null,"Басқа",null,null,{"$f":"Кесте9[Жобаланған шығындар]-Кесте9[Нақты шығындар]","v":{"v":0,"d":"Т0"}}]
[null,"Өмір",null,null,{"$f":"Кесте4[Жобаланған шығындар]-Кесте4[Нақты шығындар]","v":{"v":0,"d":"Т0"}},null,"Барлығы",{"$f":"SUBTOTAL(109,Кесте9[Жобаланған шығындар])","v":{"v":0,"d":"Т0"}},{"$f":"SUBTOTAL(109,Кесте9[Нақты шығындар])","v":{"v":0,"d":"Т0"}},{"$f":"SUBTOTAL(109,Кесте9[Айырмашылық])","v":{"v":0,"d":"Т0"}}]
[null,"Басқа",null,null,{"$f":"Кесте4[Жобаланған шығындар]-Кесте4[Нақты шығындар]","v":{"v":0,"d":"Т0"}}]
[null,"Барлығы",{"$f":"SUBTOTAL(109,Кесте4[Жобаланған шығындар])","v":{"v":0,"d":"Т0"}},{"$f":"SUBTOTAL(109,Кесте4[Нақты шығындар])","v":{"v":0,"d":"Т0"}},{"$f":"SUBTOTAL(109,Кесте4[Айырмашылық])","v":{"v":0,"d":"Т0"}},null,"ҚАРЖЫ САҚТАУ","Жобаланған шығындар","Нақты шығындар","Айырмашылық"]
[{"$nulls":6},"Қаржы сақтау",null,null,{"$f":"Кесте10[Жобаланған шығындар]-Кесте10[Нақты шығындар]","v":{"v":0,"d":"Т0"}}]
[null,"ҚОРЕК","Жобаланған шығындар","Нақты шығындар","Айырмашылық",null,"Инвестиция",null,null,{"$f":"Кесте10[Жобаланған шығындар]-Кесте10[Нақты шығындар]","v":{"v":0,"d":"Т0"}}]
[null,"Азық-түліктер",null,null,{"$f":"Кесте5[Жобаланған шығындар]-Кесте5[Нақты шығындар]","v":{"v":0,"d":"Т0"}},null,"Басқа",null,null,{"$f":"Кесте10[Жобаланған шығындар]-Кесте10[Нақты шығындар]","v":{"v":0,"d":"Т0"}}]
[null,"Мейманханалар",null,null,{"$f":"Кесте5[Жобаланған шығындар]-Кесте5[Нақты шығындар]","v":{"v":0,"d":"Т0"}},null,"Барлығы",{"$f":"SUBTOTAL(109,Кесте10[Жобаланған шығындар])","v":{"v":0,"d":"Т0"}},{"$f":"SUBTOTAL(109,Кесте10[Нақты шығындар])","v":{"v":0,"d":"Т0"}},{"$f":"SUBTOTAL(109,Кесте10[Айырмашылық])","v":{"v":0,"d":"Т0"}}]
[null,"Басқа",null,null,{"$f":"Кесте5[Жобаланған шығындар]-Кесте5[Нақты шығындар]","v":{"v":0,"d":"Т0"}}]
[null,"Барлығы",{"$f":"SUBTOTAL(109,Кесте5[Жобаланған шығындар])","v":{"v":0,"d":"Т0"}},{"$f":"SUBTOTAL(109,Кесте5[Нақты шығындар])","v":{"v":0,"d":"Т0"}},{"$f":"SUBTOTAL(109,Кесте5[Айырмашылық])","v":{"v":0,"d":"Т0"}},null,"ҚАЙЫРЫМДЫЛЫҚ","Жобаланған шығындар","Нақты шығындар","Айырмашылық"]
[{"$nulls":6},"1-қор",null,null,{"$f":"Кесте11[Жобаланған шығындар]-Кесте11[Нақты шығындар]","v":{"v":0,"d":"Т0"}}]
[null,"ҮЙ ЖАНУАРЛАРЫ","Жобаланған шығындар","Нақты шығындар","Айырмашылық",null,"2-қор",null,null,{"$f":"Кесте11[Жобаланған шығындар]-Кесте11[Нақты шығындар]","v":{"v":0,"d":"Т0"}}]
[null,"Қорек",null,null,{"$f":"Кесте6[Жобаланған шығындар]-Кесте6[Нақты шығындар]","v":{"v":0,"d":"Т0"}},null,"3-қор",null,null,{"$f":"Кесте11[Жобаланған шығындар]-Кесте11[Нақты шығындар]","v":{"v":0,"d":"Т0"}}]
[null,"Медицина",null,null,{"$f":"Кесте6[Жобаланған шығындар]-Кесте6[Нақты шығындар]","v":{"v":0,"d":"Т0"}},null,"Барлығы",{"$f":"SUBTOTAL(109,Кесте11[Жобаланған шығындар])","v":{"v":0,"d":"Т0"}},{"$f":"SUBTOTAL(109,Кесте11[Нақты шығындар])","v":{"v":0,"d":"Т0"}},{"$f":"SUBTOTAL(109,Кесте11[Айырмашылық])","v":{"v":0,"d":"Т0"}}]
[null,"Күтім",null,null,{"$f":"Кесте6[Жобаланған шығындар]-Кесте6[Нақты шығындар]","v":{"v":0,"d":"Т0"}}]
[null,"Ойыншықтар",null,null,{"$f":"Кесте6[Жобаланған шығындар]-Кесте6[Нақты шығындар]","v":{"v":0,"d":"Т0"}},null,"ЗАҢГЕРЛЕР","Жобаланған шығындар","Нақты шығындар","Айырмашылық"]
[null,"Басқа",null,null,{"$f":"Кесте6[Жобаланған шығындар]-Кесте6[Нақты шығындар]","v":{"v":0,"d":"Т0"}},null,"Заңгер",null,null,{"$f":"Кесте12[Жобаланған шығындар]-Кесте12[Нақты шығындар]","v":{"v":0,"d":"Т0"}}]
[null,"Барлығы",{"$f":"SUBTOTAL(109,Кесте6[Жобаланған шығындар])","v":{"v":0,"d":"Т0"}},{"$f":"SUBTOTAL(109,Кесте6[Нақты шығындар])","v":{"v":0,"d":"Т0"}},{"$f":"SUBTOTAL(109,Кесте6[Айырмашылық])","v":{"v":0,"d":"Т0"}},null,"Алименттер",null,null,{"$f":"Кесте12[Жобаланған шығындар]-Кесте12[Нақты шығындар]","v":{"v":0,"d":"Т0"}}]
[{"$nulls":6},"Сот шығындары",null,null,{"$f":"Кесте12[Жобаланған шығындар]-Кесте12[Нақты шығындар]","v":{"v":0,"d":"Т0"}}]
[null,"ӨЗІН КҮТУ","Жобаланған шығындар","Нақты шығындар","Айырмашылық",null,"Басқа",null,null,{"$f":"Кесте12[Жобаланған шығындар]-Кесте12[Нақты шығындар]","v":{"v":0,"d":"Т0"}}]
[null,"Медицина",null,null,{"$f":"Кесте7[Жобаланған шығындар]-Кесте7[Нақты шығындар]","v":{"v":0,"d":"Т0"}},null,"Барлығы",{"$f":"SUBTOTAL(109,Кесте12[Жобаланған шығындар])","v":{"v":0,"d":"Т0"}},{"$f":"SUBTOTAL(109,Кесте12[Нақты шығындар])","v":{"v":0,"d":"Т0"}},{"$f":"SUBTOTAL(109,Кесте12[Айырмашылық])","v":{"v":0,"d":"Т0"}}]
[null,"Шаштараз",null,null,{"$f":"Кесте7[Жобаланған шығындар]-Кесте7[Нақты шығындар]","v":{"v":0,"d":"Т0"}}]
[null,"Киім",null,null,{"$f":"Кесте7[Жобаланған шығындар]-Кесте7[Нақты шығындар]","v":{"v":0,"d":"Т0"}},null,"ЖОБАЛАНҒАН ЖАЛПЫ ШЫҒЫНДАР",null,null,{"$f":"SUM(C22,C32,C39,C45,C53,C63,H21,H30,H37,H43,H49,H56)","v":{"v":2060,"d":"Т2,060"}}]
[null,"Химиялық тазарту",null,null,{"$f":"Кесте7[Жобаланған шығындар]-Кесте7[Нақты шығындар]","v":{"v":0,"d":"Т0"}}]
[null,"Спорт залы",null,null,{"$f":"Кесте7[Жобаланған шығындар]-Кесте7[Нақты шығындар]","v":{"v":0,"d":"Т0"}},null,"НАҚТЫ ЖАЛПЫ ШЫҒЫНДАР",null,null,{"$f":"SUM(D22,D32,D39,D45,D53,D63,I21,I30,I37,I43,I49,I56)","v":{"v":2040,"d":"Т2,040"}}]
[null,"Ұйымдық алымдар",null,null,{"$f":"Кесте7[Жобаланған шығындар]-Кесте7[Нақты шығындар]","v":{"v":0,"d":"Т0"}}]
[null,"Басқа",null,null,{"$f":"Кесте7[Жобаланған шығындар]-Кесте7[Нақты шығындар]","v":{"v":0,"d":"Т0"}},null,"ЖАЛПЫ АЙЫРМАШЫЛЫҚ",null,null,{"$f":"SUM(E22,E32,E39,E45,E53,E63,J21,J30,J37,J43,J49,J56)","v":{"v":20,"d":"Т20"}}]
[null,"Барлығы",{"$f":"SUBTOTAL(109,Кесте7[Жобаланған шығындар])","v":{"v":0,"d":"Т0"}},{"$f":"SUBTOTAL(109,Кесте7[Нақты шығындар])","v":{"v":0,"d":"Т0"}},{"$f":"SUBTOTAL(109,Кесте7[Айырмашылық])","v":{"v":0,"d":"Т0"}}]